fUST/lending_fUST_20260605
["ID","MTS","AMOUNT","RATE_DAILY","PERIOD"]
[424190594,1780636243000,-186.27459396,0.00017985,2]
[424190578,1780636243000,-216.40127914,0.00017985,2]
[424190576,1780636243000,-312.51268987,0.00017985,2]
[424190558,1780636243000,-500.0,0.00017897,2]
[424190574,1780636243000,-463.23514432,0.00017985,2]
[424190570,1780636243000,-600.0,0.00017985,2]
[424190564,1780636243000,-500.0,0.00017897,2]
[424190591,1780636243000,-185.03511191,0.00017985,2]
[424190572,1780636243000,-364.87391512,0.00017985,2]
[424190587,1780636243000,-401.34422568,0.00017985,2]
[424190610,1780636243000,-172.50027856,0.00017985,2]
[424190598,1780636243000,-544.46787085,0.00017985,2]
[424190600,1780636243000,-174.68467704,0.00017985,2]
[424190604,1780636243000,-177.82483348,0.00017985,2]
[424190606,1780636243000,-396.64224695,0.00017985,2]
[424190614,1780636243000,-659.26509499,0.00017985,2]
[424190618,1780636243000,-503.36494537,0.00017985,2]
[424190624,1780636243000,-195.94559927,0.00017999,2]
[424190620,1780636243000,-215.50590875,0.00017985,2]
[424190608,1780636243000,-481.70032991,0.00017985,2]
[424190602,1780636243000,-160.53053679,0.00017985,2]
[424190568,1780636243000,-212.19213799,0.00017897,2]
[424190595,1780636243000,-182.45112198,0.00017985,2]
[424190560,1780636243000,-500.0,0.00017897,2]
[424190515,1780636243000,-500.0,0.00017897,2]
[424190556,1780636243000,-500.0,0.00017897,2]
[424190511,1780636243000,-500.0,0.00017897,2]
[424190509,1780636243000,-500.0,0.00017897,2]
[424190513,1780636243000,-500.0,0.00017897,2]
[424190612,1780636243000,-213.25366565,0.00017985,2]
[424190523,1780636243000,-500.0,0.00017897,2]
[424190519,1780636243000,-500.0,0.00017897,2]
[424190517,1780636243000,-500.0,0.00017897,2]
[424190521,1780636243000,-500.0,0.00017897,2]
[424190527,1780636243000,-500.0,0.00017897,2]
[424190525,1780636243000,-500.0,0.00017897,2]
[424190536,1780636243000,-500.0,0.00017897,2]
[424190530,1780636243000,-500.0,0.00017897,2]
[424190540,1780636243000,-500.0,0.00017897,2]
[424190538,1780636243000,-500.0,0.00017897,2]
[424190532,1780636243000,-500.0,0.00017897,2]
[424190544,1780636243000,-500.0,0.00017897,2]
[424190529,1780636243000,-500.0,0.00017897,2]
[424190534,1780636243000,-500.0,0.00017897,2]
[424190542,1780636243000,-500.0,0.00017897,2]
[424190548,1780636243000,-500.0,0.00017897,2]
[424190546,1780636243000,-500.0,0.00017897,2]
[424190550,1780636243000,-500.0,0.00017897,2]
[424190552,1780636243000,-500.0,0.00017897,2]
[424190554,1780636243000,-500.0,0.00017897,2]
[424190566,1780636243000,-500.0,0.00017897,2]
[424190562,1780636243000,-500.0,0.00017897,2]
[424190622,1780636243000,-577.16590098,0.00017999,2]
[424190626,1780636243000,-170.37451243,0.00017999,2]
[424190639,1780636243000,-500.0,0.00018807,2]
[424190685,1780636243000,-307.4415044,0.00022,2]
[424190683,1780636243000,-307.4415044,0.00022,2]
[424190698,1780636243000,-2439.8106377,0.00023079,2]
[424190700,1780636243000,-4967.5894756,0.00023079,2]
[424190697,1780636243000,-256.40551,0.00023078,2]
[424190702,1780636243000,-13528.0030692,0.00023079,2]
[424190693,1780636243000,-160.0,0.00023,2]
[424190695,1780636243000,-151.0,0.00023078,2]
[424190704,1780636243000,-3019.2290219,0.00023079,2]
[424190706,1780636243000,-4785.8507532,0.00023079,2]
[424190725,1780636243000,-151.0,0.0002344,2]
[424190708,1780636243000,-151.0,0.00023079,2]
[424190722,1780636243000,-419.197799,0.0002344,2]
[424190712,1780636243000,-151.0,0.0002344,2]
[424190710,1780636243000,-186.0133655,0.00023384,2]
[424190714,1780636243000,-151.0,0.0002344,2]
[424190718,1780636243000,-419.197799,0.0002344,2]
[424190716,1780636243000,-220.396142,0.0002344,2]
[424190729,1780636243000,-419.197799,0.0002344,2]
[424190739,1780636243000,-57676.2788,0.00023444,2]
[424190743,1780636243000,-151.0,0.00023444,2]
[424190736,1780636243000,-419.197799,0.0002344,2]
[424190732,1780636243000,-167.489978,0.0002344,2]
[424190746,1780636243000,-151.0,0.00023444,2]
[424190616,1780636243000,-500.0,0.00017985,2]
[424190687,1780636243000,-300.0,0.000221,2]
[424190681,1780636243000,-307.44150441,0.00022,2]
[424190749,1780636243000,-419.197799,0.00023444,2]
[424190689,1780636243000,-9827.178911,0.00022345,9]
[424190691,1780636243000,-157.25860506,0.000229,2]
[424190643,1780636243000,-205.041,0.00019355,2]
[424190646,1780636243000,-500.0,0.00019355,2]
[424190647,1780636243000,-768.06331103,0.00019443,2]
[424190649,1780636243000,-5793.6386838,0.00019493,2]
[424190651,1780636243000,-500.0,0.00019629,2]
[424190627,1780636243000,-362.74018466,0.00017999,2]
[424190629,1780636243000,-329.58572241,0.00017999,2]
[424190633,1780636243000,-204.59225365,0.00017999,2]
[424190631,1780636243000,-274.72677279,0.00017999,2]
[424190637,1780636243000,-500.0,0.00018533,2]
[424190635,1780636243000,-500.0,0.00018259,2]
[424190653,1780636243000,-720.0,0.00019784,2]
[424190641,1780636243000,-500.0,0.00019081,2]
[424190664,1780636243000,-160.0,0.00021762,10]
[424190656,1780636243000,-500.0,0.00019903,2]
[424190675,1780636243000,-160.0,0.00021918,2]
[424190677,1780636243000,-308.47375959,0.00021918,2]
[424190667,1780636243000,-160.0,0.00021762,10]
[424190666,1780636243000,-160.0,0.00021762,10]
[424190679,1780636243000,-300.0,0.00021918,2]
[424190660,1780636243000,-300.0,0.00021,2]
[424190662,1780636243000,-864.0,0.00021762,10]
[424190658,1780636243000,-194.77,0.000201,2]
[424190671,1780636243000,-312.31583973,0.00021918,2]
[424190669,1780636243000,-238.57476091,0.00021762,10]
[424190673,1780636243000,-156.15791986,0.00021918,2]
[424190852,1780636244000,-326.3819852,0.000236,2]
[424190850,1780636244000,-457.1957263,0.000236,2]
[424190843,1780636244000,-153.79,0.00023588,7]
[424190846,1780636244000,-457.1957263,0.000236,2]
[424190833,1780636244000,-175.638179,0.0002352,14]
[424190831,1780636244000,-200.596487,0.0002352,14]
[424190829,1780636244000,-168.134622,0.0002352,14]
[424190815,1780636244000,-317.4183694,0.000235,2]
[424190841,1780636244000,-176.97,0.00023587,7]
[424190848,1780636244000,-326.3819852,0.000236,2]
[424190817,1780636244000,-153.38,0.00023516,7]
[424190869,1780636244000,-1223.64,0.000237,2]
[424190837,1780636244000,-153.79,0.00023538,7]
[424190839,1780636244000,-153.38,0.00023566,7]
[424190855,1780636244000,-153.38,0.00023616,7]
[424190858,1780636244000,-176.97,0.00023637,7]
[424190868,1780636244000,-153.79,0.00023688,7]
[424190872,1780636244000,-1223.64,0.000237,2]
[424190875,1780636244000,-1221.79,0.000237,2]
[424190873,1780636244000,-1221.795,0.000237,2]
[424190877,1780636244000,-1819.33,0.000237,2]
[424190866,1780636244000,-176.97,0.00023687,7]
[424190879,1780636244000,-1819.33,0.000237,2]
[424190827,1780636244000,-226.366613,0.0002352,14]
[424190835,1780636244000,-176.97,0.00023537,7]
[424190810,1780636244000,-326.3819852,0.000235,2]
[424190788,1780636244000,-156.0,0.00023478,120]
[424190823,1780636244000,-364.195368,0.0002352,14]
[424190757,1780636244000,-419.197799,0.00023444,2]
[424190759,1780636244000,-151.0,0.00023444,2]
[424190762,1780636244000,-160.0,0.00023447,120]
[424190752,1780636244000,-419.197799,0.00023444,2]
[424190754,1780636244000,-419.197799,0.00023444,2]
[424190765,1780636244000,-152.0,0.00023454,7]
[424190768,1780636244000,-153.38,0.00023466,7]
[424190783,1780636244000,-186.29778122,0.00023478,2]
[424190774,1780636244000,-457.1957263,0.00023478,2]
[424190772,1780636244000,-316.3736483,0.00023478,2]
[424190780,1780636244000,-457.1957263,0.00023478,2]
[424190813,1780636244000,-457.1957263,0.000235,2]
[424190777,1780636244000,-326.3819852,0.00023478,2]
[424190791,1780636244000,-167.0,0.00023478,120]
[424190793,1780636244000,-153.0,0.00023478,120]
[424190796,1780636244000,-176.97,0.00023487,7]
[424190799,1780636244000,-153.79,0.00023488,7]
[424190806,1780636244000,-326.3819852,0.000235,2]
[424190860,1780636244000,-153.79,0.00023638,7]
[424190804,1780636244000,-457.1957263,0.000235,2]
[424190819,1780636244000,-176.917595,0.0002352,14]
[424190821,1780636244000,-176.917596,0.0002352,14]
[424190825,1780636244000,-212.218699,0.0002352,14]
[424190809,1780636244000,-457.1957263,0.000235,2]
[424190785,1780636244000,-301.97274354,0.00023478,120]
[424190862,1780636244000,-10000.0,0.0002365,2]
[424190801,1780636244000,-1648.27505813,0.00023496,2]
[424190881,1780636244000,-1819.33,0.000237,2]
[424190954,1780636244000,-176.97,0.00023987,7]
[424190956,1780636244000,-153.79,0.00023988,7]
[424190940,1780636244000,-176.97,0.00023887,7]
[424190944,1780636244000,-153.38,0.00023916,7]
[424190942,1780636244000,-153.79,0.00023888,7]
[424190948,1780636244000,-153.79,0.00023938,7]
[424190960,1780636244000,-1756.72830874,0.00024,2]
[424190958,1780636244000,-160.0,0.00024,7]
[424190946,1780636244000,-176.97,0.00023937,7]
[424190962,1780636244000,-471.21762385,0.00024,2]
[424190964,1780636244000,-28540.13612835,0.00024,2]
[424190966,1780636244000,-151.0,0.00024,2]
[424190968,1780636244000,-151.0,0.00024,2]
[424190972,1780636244000,-419.197799,0.00024,2]
[424190970,1780636244000,-419.197799,0.00024,2]
[424190974,1780636244000,-419.197799,0.00024,2]
[424190984,1780636244000,-153.79,0.00024038,7]
[424190976,1780636244000,-419.197799,0.00024,2]
[424190982,1780636244000,-176.97,0.00024037,7]
[424190980,1780636244000,-153.38,0.00024016,7]
[424190988,1780636244000,-487.0,0.00024066,2]
[424190986,1780636244000,-153.38,0.00024066,7]
[424190978,1780636244000,-151.0,0.00024,2]
[424190990,1780636244000,-540.17,0.00024066,2]
[424190992,1780636244000,-176.97,0.00024087,7]
[424190938,1780636244000,-326.3819852,0.00023878,2]
[424190952,1780636244000,-153.38,0.00023966,7]
[424190864,1780636244000,-153.38,0.00023666,7]
[424190936,1780636244000,-457.1957263,0.00023878,2]
[424190884,1780636244000,-331.53,0.000237,2]
[424190890,1780636244000,-1403.48,0.000237,2]
[424190888,1780636244000,-387.41,0.000237,2]
[424190893,1780636244000,-286.2,0.000237,2]
[424190899,1780636244000,-153.79,0.00023738,7]
[424190903,1780636244000,-218.502636,0.00023755,14]
[424190901,1780636244000,-254.986917,0.00023755,14]
[424190897,1780636244000,-176.97,0.00023737,7]
[424190895,1780636244000,-153.38,0.00023716,7]
[424190907,1780636244000,-250.997118,0.00023755,14]
[424190905,1780636244000,-218.215182,0.00023755,14]
[424190909,1780636244000,-219.650536,0.00023755,14]
[424190950,1780636244000,-1000.0,0.00023938,10]
[424190922,1780636244000,-157.0,0.000238,120]
[424190924,1780636244000,-153.38,0.00023816,7]
[424190920,1780636244000,-153.79,0.00023788,7]
[424190917,1780636244000,-326.3819852,0.00023778,2]
[424190913,1780636244000,-457.1957263,0.00023778,2]
[424190932,1780636244000,-2280.61254126,0.00023871,2]
[424190934,1780636244000,-457.1957263,0.00023878,2]
[424190915,1780636244000,-457.1957263,0.00023778,2]
[424190911,1780636244000,-153.38,0.00023766,7]
[424190928,1780636244000,-153.79,0.00023838,7]
[424190930,1780636244000,-153.38,0.00023866,7]
[424190926,1780636244000,-176.97,0.00023837,7]
[424190918,1780636244000,-176.97,0.00023787,7]
[424191080,1780636245000,-154.06161977,0.00024588,7]
[424191081,1780636245000,-153.38,0.00024616,7]
[424191085,1780636245000,-519.7809621,0.0002465,2]
[424191072,1780636245000,-153.79,0.00024538,7]
[424191066,1780636245000,-201.0464105,0.00024502,2]
[424191053,1780636245000,-151.5,0.00024502,2]
[424191062,1780636245000,-204.16089438,0.00024502,2]
[424191064,1780636245000,-200.5565406,0.00024502,2]
[424191060,1780636245000,-199.84532051,0.00024502,2]
[424191051,1780636245000,-151.5,0.00024502,2]
[424191083,1780636245000,-176.97,0.00024637,7]
[424191076,1780636245000,-192.24881749,0.00024578,7]
[424191074,1780636245000,-153.38,0.00024566,7]
[424191093,1780636245000,-419.197799,0.0002465,2]
[424191078,1780636245000,-176.97,0.00024587,7]
[424191070,1780636245000,-176.97,0.00024537,7]
[424191087,1780636245000,-158630.74876203,0.0002465,2]
[424191091,1780636245000,-151.0,0.0002465,2]
[424191055,1780636245000,-200.90358568,0.00024502,2]
[424191100,1780636245000,-151.0,0.0002465,2]
[424191108,1780636245000,-797.0,0.00024658,2]
[424191104,1780636245000,-200.0,0.00024658,2]
[424191102,1780636245000,-380.0,0.00024658,2]
[424191095,1780636245000,-419.197799,0.0002465,2]
[424191097,1780636245000,-419.197799,0.0002465,2]
[424191110,1780636245000,-797.0,0.00024658,2]
[424191113,1780636245000,-797.0,0.00024658,2]
[424191068,1780636245000,-153.38,0.00024516,7]
[424191058,1780636245000,-151.5,0.00024502,2]
[424191043,1780636245000,-176.97,0.00024487,7]
[424191049,1780636245000,-298.5,0.00024502,2]
[424191006,1780636245000,-153.79,0.00024188,7]
[424191002,1780636245000,-153.38,0.00024166,7]
[424190994,1780636245000,-153.79,0.00024088,7]
[424190998,1780636245000,-176.97,0.00024137,7]
[424190996,1780636245000,-153.38,0.00024116,7]
[424191004,1780636245000,-176.97,0.00024187,7]
[424191000,1780636245000,-153.79,0.00024138,7]
[424191008,1780636245000,-153.38,0.00024216,7]
[424191012,1780636245000,-153.79,0.00024238,7]
[424191010,1780636245000,-176.97,0.00024237,7]
[424191014,1780636245000,-153.38,0.00024266,7]
[424191016,1780636245000,-176.97,0.00024287,7]
[424191020,1780636245000,-153.38,0.00024316,7]
[424191022,1780636245000,-176.97,0.00024337,7]
[424191018,1780636245000,-153.79,0.00024288,7]
[424191024,1780636245000,-153.79,0.00024338,7]
[424191026,1780636245000,-153.38,0.00024366,7]
[424191028,1780636245000,-176.97,0.00024387,7]
[424191038,1780636245000,-156.0,0.00024478,120]
[424191030,1780636245000,-153.79,0.00024388,7]
[424191036,1780636245000,-153.38,0.00024466,7]
[424191033,1780636245000,-176.97,0.00024437,7]
[424191034,1780636245000,-153.79,0.00024438,7]
[424191032,1780636245000,-153.38,0.00024416,7]
[424191040,1780636245000,-167.0,0.00024478,120]
[424191112,1780636245000,-797.0,0.00024658,2]
[424191045,1780636245000,-153.79,0.00024488,7]
[424191047,1780636245000,-151.5,0.00024502,2]
[424191042,1780636245000,-153.0,0.00024478,120]
[424191056,1780636245000,-151.5,0.00024502,2]
[424191115,1780636245000,-797.0,0.00024658,2]
[424191089,1780636245000,-151.0,0.0002465,2]
[424191119,1780636245000,-797.0,0.00024658,2]
[424191184,1780636245000,-176.97,0.00024987,7]
[424191182,1780636245000,-196.393663,0.00024943,14]
[424191189,1780636245000,-2704.63661793,0.00025,2]
[424191193,1780636245000,-500.0,0.00025,30]
[424191194,1780636245000,-151.0,0.00025,2]
[424191196,1780636245000,-151.0,0.00025,2]
[424191198,1780636245000,-419.197799,0.00025,2]
[424191191,1780636245000,-10364.0,0.00025,2]
[424191200,1780636245000,-419.197799,0.00025,2]
[424191211,1780636245000,-1912.37,0.000251,3]
[424191207,1780636245000,-176.97,0.00025087,7]
[424191202,1780636245000,-419.197799,0.00025,2]
[424191203,1780636245000,-419.197804,0.00025,2]
[424191209,1780636245000,-1915.26,0.000251,3]
[424191205,1780636245000,-176.97,0.00025037,7]
[424191215,1780636245000,-1423.823,0.000251,2]
[424191213,1780636245000,-1423.823,0.000251,2]
[424191117,1780636245000,-797.0,0.00024658,2]
[424191228,1780636245000,-176.97,0.00025237,7]
[424191230,1780636245000,-176.97,0.00025287,7]
[424191231,1780636245000,-176.97,0.00025337,7]
[424191226,1780636245000,-176.97,0.00025187,7]
[424191222,1780636245000,-1290.87,0.000251,2]
[424191220,1780636245000,-303.19,0.000251,2]
[424191235,1780636245000,-508.80453538,0.00025344,7]
[424191219,1780636245000,-259.46,0.000251,5]
[424191233,1780636245000,-326.24457179,0.00025344,120]
[424191224,1780636245000,-176.97,0.00025137,7]
[424191237,1780636245000,-157.25860506,0.00025344,2]
[424191186,1780636245000,-31000.0,0.00025,15]
[424191180,1780636245000,-196.652373,0.00024943,14]
[424191217,1780636245000,-1423.82,0.000251,2]
[424191178,1780636245000,-229.488226,0.00024943,14]
[424191173,1780636245000,-176.97,0.00024887,7]
[424191121,1780636245000,-797.0,0.00024658,2]
[424191133,1780636245000,-797.0,0.00024658,2]
[424191127,1780636245000,-797.0,0.00024658,2]
[424191123,1780636245000,-797.0,0.00024658,2]
[424191131,1780636245000,-797.0,0.00024658,2]
[424191125,1780636245000,-797.0,0.00024658,2]
[424191129,1780636245000,-797.0,0.00024658,2]
[424191135,1780636245000,-797.0,0.00024658,2]
[424191139,1780636245000,-797.0,0.00024658,2]
[424191137,1780636245000,-797.0,0.00024658,2]
[424191144,1780636245000,-797.0,0.00024658,2]
[424191142,1780636245000,-797.0,0.00024658,2]
[424191140,1780636245000,-797.0,0.00024658,2]
[424191146,1780636245000,-797.0,0.00024658,2]
[424191098,1780636245000,-419.197799,0.0002465,2]
[424191156,1780636245000,-176.97,0.00024687,7]
[424191160,1780636245000,-153.38,0.00024716,7]
[424191152,1780636245000,-802.83144436,0.00024658,2]
[424191158,1780636245000,-180.536838,0.00024696,14]
[424191150,1780636245000,-797.0,0.00024658,2]
[424191154,1780636245000,-153.38,0.00024666,7]
[424191165,1780636245000,-176.97,0.00024787,7]
[424191148,1780636245000,-797.0,0.00024658,2]
[424191161,1780636245000,-176.97,0.00024737,7]
[424191163,1780636245000,-153.38,0.00024766,7]
[424191167,1780636245000,-153.38,0.00024816,7]
[424191169,1780636245000,-176.97,0.00024837,7]
[424191171,1780636245000,-153.38,0.00024866,7]
[424191177,1780636245000,-176.97,0.00024937,7]
[424191175,1780636245000,-153.57461883,0.00024916,7]
[424191241,1780636246000,-176.97,0.00025437,7]
[424191239,1780636246000,-176.97,0.00025387,7]
[424191245,1780636246000,-157654.54060569,0.00025444,2]
[424191266,1780636246000,-1228.33353586,0.00025444,2]
[424191243,1780636246000,-508.80453538,0.00025441,7]
[424191446,1780636247000,-279.00369652,0.00024658,2]
[424191448,1780636247000,-19970.39367506,0.00025444,2]
[424191443,1780636247000,-151.5,0.00024658,2]
[424191435,1780636247000,-151.5,0.00024658,2]
[424191441,1780636247000,-151.5,0.00024658,2]
[424192152,1780637031000,-1125.76884864,8.429e-05,2]
[424192153,1780637033000,-500.00170171,8.429e-05,2]
[424192154,1780637035000,-297.6729855,8.429e-05,2]
[424192235,1780637211000,-336.57899379,8.345e-05,2]
[424192236,1780637212000,334.75129425,8.206e-05,2]
[424192237,1780637213000,-676.45081764,8.345e-05,2]
[424192238,1780637217000,-426.15119389,8.345e-05,2]
[424192239,1780637219000,-500.00364558,8.345e-05,2]
[424192240,1780637222000,-316.59738628,8.345e-05,2]
[424192244,1780637228000,-258.83556483,8.345e-05,2]
[424192245,1780637230000,-420.61563084,8.345e-05,2]
[424192246,1780637231000,-231.52176973,8.345e-05,2]
[424192247,1780637233000,-372.37374069,8.345e-05,2]
[424192250,1780637234000,1000.0,8.206e-05,2]
[424192249,1780637234000,665.24870575,8.206e-05,2]
[424192248,1780637234000,-293.09379332,8.345e-05,2]
[424192251,1780637236000,-253.95433764,8.206e-05,2]
[424192252,1780637236000,-143.89692197,8.345e-05,2]
[424192265,1780637238000,-156.9175465,8.345e-05,2]
[424192266,1780637241000,-310.36452317,8.345e-05,2]
[424192267,1780637242000,2131.20930552,8.205e-05,2]
[424192268,1780637243000,-450.43058049,8.345e-05,2]
[424192280,1780637265000,760.79510366,8.205e-05,2]
[424192409,1780637433000,-561.14638683,8.514e-05,2]
[424192511,1780637446000,-283.92251721,8.514e-05,2]
[424193163,1780637474000,-4154.93109596,8.514e-05,2]
[424193164,1780637491000,-271.80429101,8.6e-05,2]
[424193177,1780638055000,5000.0,8.205e-05,2]
[424193178,1780638063000,5000.0,8.205e-05,2]
[424193186,1780638276000,-556.73554364,8.345e-05,2]
[424193188,1780638277000,-173.72927182,8.345e-05,2]
[424193187,1780638277000,5000.0,8.205e-05,2]
[424193189,1780638281000,-403.28815122,8.345e-05,2]
[424193190,1780638285000,1077.01742304,8.205e-05,2]
[424193192,1780638301000,5000.0,8.205e-05,2]
[424193194,1780638323000,3479.36846678,8.205e-05,2]
[424193196,1780638468000,5000.0,8.205e-05,2]
[424193200,1780638491000,5000.0,8.205e-05,2]
[424193201,1780638513000,5000.0,8.205e-05,2]
[424193202,1780638535000,5000.0,8.205e-05,2]
[424193204,1780638557000,5000.0,8.205e-05,2]
[424193206,1780638580000,3632.92852741,8.205e-05,2]
[424193237,1780638624000,168.0,0.00023482,30]
[424193284,1780638631000,-158.19648,8.345e-05,2]
[424193287,1780638631000,-1617.82859479,8.771e-05,2]
[424193286,1780638631000,-494.84939305,8.6e-05,2]
[424193295,1780638631000,-575.92824447,8.771e-05,2]
[424193294,1780638631000,-507.81741414,8.771e-05,2]
[424193293,1780638631000,-433.45811007,8.771e-05,2]
[424193297,1780638631000,-2297.60708686,8.771e-05,2]
[424193298,1780638631000,-3082.32694291,8.771e-05,2]
[424193289,1780638631000,-9183.92861797,8.771e-05,2]
[424193296,1780638631000,-545.83712939,8.771e-05,2]
[424193468,1780638641000,-175.512187,0.0002282,2]
[424193453,1780638641000,-156.61530266,0.0002,2]
[424193466,1780638641000,-864.0,0.00022213,10]
[424193464,1780638641000,-177.0,0.00022,2]
[424193438,1780638641000,-215.97229781,0.00017646,2]
[424193448,1780638641000,-600.0,0.00018358,2]
[424193452,1780638641000,-768.06331103,0.00019512,2]
[424193450,1780638641000,-164.033,0.00019254,2]
[424193446,1780638641000,-365.23884426,0.00017999,2]
[424193440,1780638641000,-220.49352407,0.00017847,2]
[424193442,1780638641000,-218.45769076,0.00017999,2]
[424193444,1780638641000,-319.51851925,0.00017999,2]
[424193436,1780638641000,-182.61942213,0.00017646,2]
[424193431,1780638641000,-4960.2287041,0.00015629,2]
[424193429,1780638641000,-151.66,0.00012,2]
[424193422,1780638641000,-300.0,8.771e-05,2]
[424193403,1780638641000,-300.0,8.771e-05,2]
[424193401,1780638641000,-300.0,8.771e-05,2]
[424193405,1780638641000,-300.0,8.771e-05,2]
[424193409,1780638641000,-300.0,8.771e-05,2]
[424193415,1780638641000,-300.0,8.771e-05,2]
[424193413,1780638641000,-300.0,8.771e-05,2]
[424193474,1780638641000,-245.92630466,0.00023289,120]
[424193411,1780638641000,-300.0,8.771e-05,2]
[424193417,1780638641000,-300.0,8.771e-05,2]
[424193421,1780638641000,-300.0,8.771e-05,2]
[424193419,1780638641000,-300.0,8.771e-05,2]
[424193426,1780638641000,-300.0,8.771e-05,2]
[424193424,1780638641000,-300.0,8.771e-05,2]
[424193428,1780638641000,-300.0,8.771e-05,2]
[424193407,1780638641000,-300.0,8.771e-05,2]
[424193462,1780638641000,-175.512187,0.00021679,2]
[424193433,1780638641000,-151.67,0.000176,2]
[424193457,1780638641000,-578.7881455,0.000203,2]
[424193500,1780638641000,-167.0,0.00024482,120]
[424193503,1780638641000,-152.0,0.00024527,7]
[424193505,1780638641000,-417.41566852,0.00024681,2]
[424193507,1780638641000,-1306.1411237,0.00024787,2]
[424193509,1780638641000,-4368.87981348,0.00024834,2]
[424193518,1780638641000,-3404.11366222,0.00025034,2]
[424193501,1780638641000,-152.0,0.00024527,7]
[424193511,1780638641000,-195.58474377,0.0002493,2]
[424193516,1780638641000,-582.57639381,0.00025034,2]
[424193455,1780638641000,-720.0,0.00020193,2]
[424193521,1780638641000,-3404.11366222,0.00025034,2]
[424193523,1780638641000,-3404.11366222,0.00025034,2]
[424193525,1780638641000,-3404.11366222,0.00025034,2]
[424193527,1780638641000,-112.70122737,0.00025034,2]
[424193520,1780638641000,-3404.11366222,0.00025034,2]
[424193497,1780638641000,-156.0,0.00024482,120]
[424193513,1780638641000,-3404.11366222,0.00025034,2]
[424193496,1780638641000,-1000.0,0.00024434,10]
[424193486,1780638641000,-2509.17413196,0.00023482,2]
[424193472,1780638641000,-177.0,0.00023014,7]
[424193470,1780638641000,-160.0,0.00023,2]
[424193458,1780638641000,-170.6203966,0.00020506,2]
[424193461,1780638641000,-232.59270142,0.00020666,2]
[424193476,1780638641000,-154.50593804,0.00023476,120]
[424193488,1780638641000,-175.512187,0.0002396,2]
[424193434,1780638641000,-159.75925963,0.00017646,2]
[424193491,1780638641000,-576.6956,0.0002435,2]
[424193493,1780638641000,-152.0,0.00024424,7]
[424193482,1780638641000,-156.0,0.00023482,120]
[424193480,1780638641000,-168.0,0.00023481,30]
[424193490,1780638641000,-180.0,0.00024164,7]
[424193484,1780638641000,-167.0,0.00023482,120]
[424193478,1780638641000,-2151.0,0.00023481,30]
[424193575,1780638643000,-484.32558408,0.00025034,2]
[424193646,1780638646000,-893.36314923,0.00025034,2]
[424193645,1780638646000,-2469.08685077,0.00025034,2]
[424193644,1780638646000,-338.0,0.00025034,2]
[424193649,1780638804000,221.79533612,0.00023479,120]
[424193650,1780638804000,447.47768839,0.00023479,120]
[424193651,1780638804000,447.47768839,0.00023479,120]
[424193653,1780638804000,447.47768839,0.00023479,120]
[424193654,1780638804000,221.79533612,0.00023479,120]
[424193652,1780638804000,221.79533612,0.00023479,120]
[424193655,1780638804000,447.47768839,0.00023479,120]
[424193658,1780638805000,447.47768839,0.00023479,120]
[424193657,1780638805000,447.47768839,0.00023479,120]
[424193656,1780638805000,447.47768839,0.00023479,120]
[424193661,1780638806000,447.47768839,0.00023479,120]
[424193660,1780638806000,447.47768839,0.00023479,120]
[424193659,1780638806000,447.47768839,0.00023479,120]
[424193664,1780638807000,447.47768839,0.00023479,120]
[424193663,1780638807000,447.47768839,0.00023479,120]
[424193662,1780638807000,447.47768839,0.00023479,120]